fUST/lending_fUST_20250511
["ID","MTS","AMOUNT","RATE_DAILY","PERIOD"]
[360754365,1746978199717,-500.0,0.00044136,120]
[360754366,1746978199772,-500.0,0.00044136,120]
[360754367,1746978199827,-181.69005886,0.00044136,120]
[360754368,1746978199888,-3839.54880567,0.000443,120]
[360754369,1746978199943,-3823.84,0.000444,120]
[360754370,1746978200002,-10038.22225671,0.00044595,120]
[360754371,1746978200058,-591.28589605,0.000449,120]
[360754372,1746978200115,-175.0,0.00044932,59]
[360754373,1746978200171,-1000.0,0.00044999,120]
[360754374,1746978200228,-151.0,0.00045,120]
[360754375,1746978200285,-155.93,0.00045,120]
[360754376,1746978200341,-230.30533534,0.00045,120]
[360754377,1746978200397,-10000.0,0.00045,60]
[360754378,1746978200450,-20910.75711983,0.00045,120]
[360754379,1746978200504,-200.0,0.00045,60]
[360754380,1746978200558,-66401.43625407,0.00045,120]
[360754381,1746978200614,-3024.52984657,0.00045,120]
[360754382,1746978200667,-100000.0,0.00045,120]
[360754383,1746978200721,-162.8,0.00045,54]
[360754384,1746978200776,-323.96663352,0.00045,120]
[360754385,1746978200830,-186.87368749,0.00045,120]
[360754386,1746978200905,-22072.37100959,0.00045,120]
[360754387,1746978200980,-4180.94789244,0.00045,120]
[360754388,1746978201061,-4007.87309621,0.00045,120]
[360754389,1746978201137,-3370.58459514,0.00045,60]
[360754390,1746978201198,-4452.24802122,0.00045,120]
[360754391,1746978201254,-3865.61220473,0.00045,120]
[360754392,1746978201309,-181.96,0.00045205,120]
[360754393,1746978201366,-50000.0,0.000455,120]
[360754394,1746978201420,-200.0,0.0004588,69]
[360754395,1746978201474,-50000.0,0.000459,120]
[360754396,1746978201528,-5000.0,0.000459,120]
[360754397,1746978201585,-600.0,0.00046,120]
[360754398,1746978201640,-200.0,0.00046,60]
[360754399,1746978201692,-5515.22306513,0.00046,60]
[360754400,1746978201746,-12241.0,0.00046,120]
[360754401,1746978201799,-3429.74323917,0.00046,120]
[360754402,1746978201852,-4585.95055736,0.00046,120]
[360754403,1746978201907,-153.0,0.00046027,59]
[360754404,1746978201958,-181.96,0.00046575,120]
[360754405,1746978202013,-13380.34,0.00046575,120]
[360754406,1746978202065,-7751.22440037,0.00046575,33]
[360754407,1746978211781,224.78,0.0003599,120]
[360754408,1746978213890,1000.0,0.00046575,33]
[360754425,1746978506410,400.0,0.00022,30]
[360754448,1746978632406,-2880.64093775,0.00012061,2]
[360754450,1746978632416,-163.0,0.00012141,2]
[360754452,1746978632426,-160.0,0.00012142,2]
[360754454,1746978632436,-300.0,0.00012142,2]
[360754456,1746978632446,-179.0,0.00012142,2]
[360754458,1746978632455,-300.0,0.00012142,2]
[360754460,1746978632465,-1132.0,0.00012142,2]
[360754462,1746978632474,-4294.42616665,0.00012143,2]
[360754476,1746978632632,-8327.04551,0.00012143,2]
[360754477,1746978632642,-212.1539542,0.00012143,2]
[360754478,1746978632652,-422.1676983,0.00012143,2]
[360754480,1746978632661,-160.0,0.00012143,2]
[360754482,1746978632671,-997.71092301,0.00012143,2]
[360754483,1746978632681,-160.0,0.00012143,2]
[360754486,1746978632690,-160.0,0.00012143,2]
[360754487,1746978632700,-566.51039838,0.00012144,2]
[360754490,1746978632709,-500.0,0.00012144,2]
[360754491,1746978632719,-500.0,0.00012144,2]
[360754494,1746978632728,-500.0,0.00012144,2]
[360754496,1746978632738,-500.0,0.00012144,2]
[360754497,1746978632747,-240.01369399,0.00012144,2]
[360754499,1746978632757,-473.19702269,0.00012144,2]
[360754501,1746978632766,-500.0,0.00012144,2]
[360754504,1746978632775,-500.0,0.00012144,2]
[360754506,1746978632784,-500.0,0.00012144,2]
[360754507,1746978632793,-500.0,0.00012144,2]
[360754509,1746978632803,-500.0,0.00012144,2]
[360754511,1746978632813,-500.0,0.00012144,2]
[360754513,1746978632822,-500.0,0.00012144,2]
[360754515,1746978632832,-500.0,0.00012144,2]
[360754517,1746978632841,-500.0,0.00012144,2]
[360754519,1746978632850,-500.0,0.00012144,2]
[360754521,1746978632860,-516.54098524,0.00012144,2]
[360754523,1746978632869,-160.0,0.00012144,2]
[360754525,1746978632878,-160.0,0.00012144,2]
[360754526,1746978632888,-502.18465574,0.00012145,2]
[360754527,1746978632897,-167.5060723,0.00012145,2]
[360754528,1746978632907,-403.02201146,0.00012145,2]
[360754529,1746978632917,-350.34277277,0.00012146,2]
[360754531,1746978632926,-400.0,0.00012146,2]
[360754532,1746978632935,-400.0,0.00012146,2]
[360754533,1746978632944,-400.0,0.00012146,2]
[360754534,1746978632953,-420.46,0.00012146,2]
[360754535,1746978632962,-400.0,0.00012152,2]
[360754536,1746978632972,-400.0,0.00012152,2]
[360754537,1746978632981,-405.13127312,0.00012152,2]
[360754538,1746978632990,-514.84928519,0.00012152,2]
[360754539,1746978632999,-400.0,0.00012152,2]
[360754540,1746978633008,-400.0,0.00012152,2]
[360754541,1746978633019,-400.0,0.00012152,2]
[360754542,1746978633029,-401.88652065,0.00012152,2]
[360754543,1746978633038,-400.0,0.00012152,2]
[360754544,1746978633048,-400.0,0.00012152,2]
[360754545,1746978633057,-400.0,0.00012152,2]
[360754546,1746978633067,-400.0,0.00012152,2]
[360754547,1746978633076,-400.0,0.00012152,2]
[360754548,1746978633085,-400.0,0.00012152,2]
[360754549,1746978633095,-400.0,0.00012152,2]
[360754550,1746978633104,-400.0,0.00012152,2]
[360754551,1746978633114,-1615.66,0.00012152,2]
[360754552,1746978633123,-400.0,0.00012152,2]
[360754553,1746978633133,-400.0,0.00012152,2]
[360754554,1746978633142,-400.0,0.00012152,2]
[360754555,1746978633151,-400.0,0.00012152,2]
[360754556,1746978633161,-419.1014355,0.00012152,2]
[360754557,1746978633171,-400.0,0.00012152,2]
[360754558,1746978633180,-400.0,0.00012152,2]
[360754559,1746978633190,-400.0,0.00012152,2]
[360754560,1746978633200,-548.79371066,0.00012152,2]
[360754561,1746978633209,-400.0,0.00012152,2]
[360754562,1746978633219,-400.0,0.00012152,2]
[360754563,1746978633229,-403.63844082,0.00012152,2]
[360754564,1746978633239,-185.85423252,0.00012152,2]
[360754565,1746978633248,-400.0,0.00012152,2]
[360754566,1746978633258,-400.0,0.00012152,2]
[360754567,1746978633268,-204.90199643,0.00012152,2]
[360754568,1746978633278,-400.0,0.00012152,2]
[360754569,1746978633289,-400.0,0.00012152,2]
[360754570,1746978633298,-204.00625246,0.00012152,2]
[360754571,1746978633308,-222.94299516,0.00012152,2]
[360754572,1746978633317,-400.89354063,0.00012152,2]
[360754573,1746978633327,-400.0,0.00012152,2]
[360754574,1746978633338,-400.0,0.00012152,2]
[360754575,1746978633347,-4602.9,0.00012152,2]
[360754576,1746978633357,-400.0,0.00012152,2]
[360754577,1746978633369,-429.40900658,0.00012152,2]
[360754578,1746978633379,-400.0,0.00012152,2]
[360754579,1746978633388,-404.92196697,0.00012152,2]
[360754580,1746978633398,-400.0,0.00012152,2]
[360754581,1746978633407,-421.5,0.00012152,2]
[360754582,1746978633417,-400.0,0.00012152,2]
[360754583,1746978633427,-400.0,0.00012152,2]
[360754584,1746978633437,-223.34700228,0.00012152,2]
[360754585,1746978633447,-400.0,0.00012152,2]
[360754586,1746978633456,-400.0,0.00012152,2]
[360754587,1746978633466,-403.23966556,0.00012152,2]
[360754588,1746978633476,-400.0,0.00012152,2]
[360754589,1746978633485,-335.65381931,0.00012152,2]
[360754590,1746978633494,-400.0,0.00012152,2]
[360754591,1746978633504,-335.92462203,0.00012152,2]
[360754592,1746978633513,-400.0,0.00012152,2]
[360754593,1746978633522,-400.0,0.00012152,2]
[360754594,1746978633532,-404.22128179,0.00012152,2]
[360754595,1746978633542,-400.0,0.00012152,2]
[360754596,1746978633551,-400.0,0.00012152,2]
[360754597,1746978633561,-309.89134578,0.00012152,2]
[360754598,1746978633570,-400.39350383,0.00012152,2]
[360754599,1746978633580,-400.0,0.00012152,2]
[360754600,1746978633589,-400.0,0.00012152,2]
[360754601,1746978633599,-278.22450107,0.00012152,2]
[360754602,1746978633609,-400.0,0.00012152,2]
[360754603,1746978633619,-400.0,0.00012152,2]
[360754604,1746978633629,-500.0,0.00012152,2]
[360754605,1746978633639,-400.0,0.00012152,2]
[360754606,1746978633649,-400.0,0.00012152,2]
[360754607,1746978633659,-400.0,0.00012152,2]
[360754608,1746978633669,-400.0,0.00012152,2]
[360754609,1746978633683,-400.0,0.00012152,2]
[360754610,1746978633693,-400.0,0.00012152,2]
[360754611,1746978633703,-400.0,0.00012152,2]
[360754612,1746978633713,-400.0,0.00012152,2]
[360754613,1746978633723,-403.6239542,0.00012152,2]
[360754614,1746978633732,-400.0,0.00012152,2]
[360754615,1746978633742,-400.0,0.00012152,2]
[360754616,1746978633752,-400.0,0.00012152,2]
[360754617,1746978633762,-400.0,0.00012152,2]
[360754618,1746978633772,-511.3094572,0.00012152,2]
[360754619,1746978633782,-400.0,0.00012152,2]
[360754620,1746978633792,-400.0,0.00012152,2]
[360754621,1746978633801,-535.05225089,0.00012152,2]
[360754622,1746978633811,-400.0,0.00012152,2]
[360754623,1746978633821,-414.05136376,0.00012152,2]
[360754624,1746978633831,-400.0,0.00012152,2]
[360754625,1746978633841,-400.0,0.00012152,2]
[360754626,1746978633850,-400.0,0.00012152,2]
[360754627,1746978633860,-400.0,0.00012152,2]
[360754628,1746978633869,-400.0,0.00012152,2]
[360754629,1746978633879,-400.0,0.00012152,2]
[360754630,1746978633888,-400.0,0.00012152,2]
[360754631,1746978633898,-400.0,0.00012152,2]
[360754632,1746978633908,-400.0,0.00012152,2]
[360754633,1746978633917,-548.41472653,0.00012152,2]
[360754634,1746978633929,-400.0,0.00012152,2]
[360754635,1746978633939,-400.0,0.00012152,2]
[360754636,1746978633948,-524.08060398,0.00012152,2]
[360754637,1746978633958,-400.0,0.00012152,2]
[360754638,1746978633967,-404.21445751,0.00012152,2]
[360754639,1746978633976,-400.0,0.00012153,2]
[360754640,1746978633985,-404.63457962,0.00012153,2]
[360754641,1746978633994,-400.0,0.00012153,2]
[360754642,1746978634003,-400.0,0.00012153,2]
[360754643,1746978634013,-400.0,0.00012153,2]
[360754644,1746978634023,-6494.35,0.00012153,2]
[360754645,1746978634032,-400.0,0.00012153,2]
[360754646,1746978634041,-400.0,0.00012153,2]
[360754647,1746978634051,-400.0,0.00012153,2]
[360754648,1746978634060,-400.0,0.00012153,2]
[360754649,1746978634070,-400.0,0.00012153,2]
[360754650,1746978634079,-400.0,0.00012153,2]
[360754651,1746978634089,-400.0,0.00012153,2]
[360754652,1746978634098,-400.0,0.00012153,2]
[360754653,1746978634108,-16097.54,0.0001216,2]
[360754654,1746978634117,-400.0,0.00012161,2]
[360754655,1746978634126,-157.25,0.00012161,2]
[360754656,1746978634136,-270.01799636,0.00012161,2]
[360754657,1746978634146,-511.54501572,0.00012161,2]
[360754658,1746978634155,-400.0,0.00012161,2]
[360754659,1746978634165,-400.0,0.00012161,2]
[360754660,1746978634176,-400.0,0.00012161,2]
[360754661,1746978634185,-400.0,0.00012161,2]
[360754662,1746978634194,-400.0,0.00012161,2]
[360754663,1746978634203,-400.0,0.00012161,2]
[360754664,1746978634213,-400.0,0.00012161,2]
[360754665,1746978634222,-400.0,0.00012161,2]
[360754666,1746978634231,-500.0,0.00012161,2]
[360754667,1746978634241,-400.0,0.00012161,2]
[360754668,1746978634250,-400.0,0.00012161,2]
[360754669,1746978634260,-400.0,0.00012161,2]
[360754670,1746978634269,-400.0,0.00012161,2]
[360754671,1746978634279,-445.36333333,0.00012161,2]
[360754672,1746978634289,-400.0,0.00012161,2]
[360754673,1746978634299,-400.0,0.00012161,2]
[360754674,1746978634308,-400.0,0.00012161,2]
[360754675,1746978634317,-400.0,0.00012161,2]
[360754676,1746978634326,-400.0,0.00012161,2]
[360754677,1746978634337,-400.0,0.00012161,2]
[360754678,1746978634346,-400.0,0.00012161,2]
[360754679,1746978634355,-400.0,0.00012161,2]
[360754680,1746978634366,-500.0,0.00012161,2]
[360754681,1746978634375,-400.0,0.00012161,2]
[360754682,1746978634384,-400.0,0.00012161,2]
[360754683,1746978634394,-514.967618,0.00012161,2]
[360754684,1746978634403,-400.0,0.00012161,2]
[360754685,1746978634413,-403.0591896,0.00012161,2]
[360754686,1746978634422,-400.0,0.00012161,2]
[360754687,1746978634434,-400.0,0.00012161,2]
[360754688,1746978634443,-400.0,0.00012161,2]
[360754689,1746978634454,-400.0,0.00012161,2]
[360754690,1746978634464,-221.48981051,0.00012161,2]
[360754691,1746978634473,-400.0,0.00012161,2]
[360754692,1746978634483,-400.0,0.00012161,2]
[360754693,1746978634492,-400.0,0.00012161,2]
[360754694,1746978634502,-400.0,0.00012161,2]
[360754695,1746978634511,-400.0,0.00012161,2]
[360754696,1746978634520,-400.0,0.00012161,2]
[360754697,1746978634530,-400.0,0.00012161,2]
[360754698,1746978634538,-407.14652703,0.00012161,2]
[360754699,1746978634547,-400.0,0.00012161,2]
[360754700,1746978634557,-400.0,0.00012161,2]
[360754701,1746978634566,-400.0,0.00012161,2]
[360754702,1746978634575,-400.0,0.00012161,2]
[360754703,1746978634584,-1203.07,0.00012161,2]
[360754704,1746978634594,-400.0,0.00012161,2]
[360754705,1746978634604,-400.0,0.00012161,2]
[360754706,1746978634613,-400.0,0.00012161,2]
[360754707,1746978634624,-400.0,0.00012161,2]
[360754708,1746978634634,-400.0,0.00012161,2]
[360754709,1746978634643,-400.0,0.00012161,2]
[360754710,1746978634652,-400.0,0.00012161,2]
[360754711,1746978634662,-400.0,0.00012161,2]
[360754712,1746978634671,-400.0,0.00012161,2]
[360754713,1746978634681,-428.14,0.00012161,2]
[360754714,1746978634691,-400.0,0.00012161,2]
[360754715,1746978634700,-501.19157348,0.00012161,2]
[360754716,1746978634710,-400.0,0.00012161,2]
[360754717,1746978634719,-400.0,0.00012161,2]
[360754718,1746978634728,-1213.06,0.00012161,2]
[360754719,1746978634737,-400.0,0.00012161,2]
[360754720,1746978634747,-400.0,0.00012161,2]
[360754721,1746978634756,-400.0,0.00012161,2]
[360754722,1746978634765,-400.0,0.00012161,2]
[360754723,1746978634774,-400.0,0.00012161,2]
[360754724,1746978634782,-400.0,0.00012161,2]
[360754725,1746978634792,-210.25095741,0.00012161,2]
[360754726,1746978634801,-400.0,0.00012161,2]
[360754727,1746978634809,-9600.09,0.00012161,2]
[360754728,1746978634818,-400.0,0.00012161,2]
[360754729,1746978634827,-400.0,0.00012161,2]
[360754730,1746978634836,-400.0,0.00012161,2]
[360754731,1746978634845,-400.0,0.00012161,2]
[360754732,1746978634854,-400.0,0.00012161,2]
[360754733,1746978634864,-400.0,0.00012161,2]
[360754734,1746978634873,-400.0,0.00012161,2]
[360754735,1746978635010,-192.90074602,0.00012161,2]
[360754736,1746978635172,-207.09925398,0.00012161,2]
[360754737,1746978635183,-400.0,0.00012161,2]
[360754738,1746978635192,-400.0,0.00012161,2]
[360754739,1746978635201,-400.0,0.00012161,2]
[360754740,1746978635211,-400.0,0.00012161,2]
[360754741,1746978635220,-507.13171683,0.00012161,2]
[360754742,1746978635229,-400.0,0.00012161,2]
[360754743,1746978635239,-400.0,0.00012161,2]
[360754744,1746978635248,-400.0,0.00012161,2]
[360754745,1746978635257,-400.0,0.00012161,2]
[360754746,1746978635266,-400.0,0.00012161,2]
[360754747,1746978635275,-400.0,0.00012161,2]
[360754748,1746978635285,-400.0,0.00012164,2]
[360754749,1746978635297,-320.62,0.00012164,2]
[360754750,1746978635306,-400.0,0.00012164,2]
[360754751,1746978635315,-400.0,0.00012164,2]
[360754752,1746978635324,-871.74,0.00012166,2]
[360754753,1746978635334,-400.0,0.00012166,2]
[360754754,1746978635343,-400.0,0.00012166,2]
[360754755,1746978635352,-400.0,0.00012166,2]
[360754756,1746978635362,-528.77412141,0.00012166,2]
[360754757,1746978635371,-605.81,0.00012166,2]
[360754758,1746978635381,-3072.78,0.00012166,2]
[360754759,1746978635390,-160.0,0.00012249,2]
[360754760,1746978635399,-194.19443413,0.00012258,2]
[360754761,1746978635407,-262.09838461,0.00012258,2]
[360754762,1746978635416,-400.0,0.00012258,2]
[360754763,1746978635425,-400.0,0.00012258,2]
[360754764,1746978635435,-400.0,0.00012258,2]
[360754765,1746978635445,-400.0,0.00012258,2]
[360754766,1746978635454,-400.0,0.00012258,2]
[360754767,1746978635463,-400.0,0.00012258,2]
[360754768,1746978635472,-503.01302754,0.00012258,2]
[360754769,1746978635481,-400.0,0.00012258,2]
[360754770,1746978635490,-186.79082279,0.00012258,2]
[360754771,1746978635499,-400.0,0.00012258,2]
[360754772,1746978635508,-400.0,0.00012258,2]
[360754773,1746978635517,-400.0,0.00012258,2]
[360754774,1746978635526,-400.0,0.00012258,2]
[360754775,1746978635535,-478.83752486,0.00012258,2]
[360754776,1746978635544,-400.0,0.00012258,2]
[360754777,1746978635554,-400.0,0.00012258,2]
[360754778,1746978635564,-400.0,0.00012258,2]
[360754779,1746978635573,-151.0,0.00012258,2]
[360754780,1746978635582,-403.53703647,0.00012258,2]
[360754781,1746978635591,-400.0,0.00012258,2]
[360754782,1746978635599,-400.0,0.00012258,2]
[360754783,1746978635609,-401.41348252,0.00012258,2]
[360754784,1746978635618,-400.0,0.00012258,2]
[360754785,1746978635628,-515.08624403,0.00012258,2]
[360754786,1746978635639,-400.0,0.00012258,2]
[360754787,1746978635648,-400.0,0.00012258,2]
[360754788,1746978635662,-400.0,0.00012258,2]
[360754789,1746978635671,-196.13535,0.00012258,2]
[360754790,1746978635682,-487.71666266,0.00012258,2]
[360754791,1746978635691,-196.13535,0.00012258,2]
[360754792,1746978635700,-500.0,0.00012258,2]
[360754793,1746978635709,-400.0,0.00012258,2]
[360754794,1746978635719,-400.0,0.00012258,2]
[360754795,1746978635728,-404.5175196,0.00012258,2]
[360754796,1746978635737,-400.0,0.00012258,2]
[360754797,1746978635746,-400.0,0.00012258,2]
[360754798,1746978635755,-400.0,0.00012258,2]
[360754799,1746978635764,-400.0,0.00012258,2]
[360754800,1746978635773,-400.0,0.00012258,2]
[360754801,1746978635782,-400.0,0.00012258,2]
[360754802,1746978635791,-400.0,0.00012258,2]
[360754803,1746978635800,-400.0,0.00012258,2]
[360754804,1746978635810,-400.0,0.00012258,2]
[360754805,1746978635819,-400.0,0.00012258,2]
[360754806,1746978635827,-501.81633193,0.00012258,2]
[360754807,1746978635836,-400.6979318,0.00012258,2]
[360754808,1746978635845,-400.0,0.00012258,2]
[360754809,1746978635854,-400.0,0.00012258,2]
[360754810,1746978635863,-400.0,0.00012258,2]
[360754811,1746978635872,-400.0,0.00012258,2]
[360754812,1746978635881,-400.0,0.00012258,2]
[360754813,1746978635890,-400.0,0.00012258,2]
[360754814,1746978635899,-400.0,0.00012258,2]
[360754815,1746978635908,-400.0,0.00012258,2]
[360754816,1746978635917,-400.0,0.00012258,2]
[360754817,1746978635928,-400.0,0.00012258,2]
[360754818,1746978635937,-248.1372042,0.00012258,2]
[360754819,1746978635946,-400.0,0.00012258,2]
[360754820,1746978635955,-400.0,0.00012258,2]
[360754821,1746978635964,-400.0,0.00012258,2]
[360754822,1746978635973,-400.0,0.00012258,2]
[360754823,1746978635982,-502.49252318,0.00012258,2]
[360754824,1746978635992,-400.0,0.00012258,2]
[360754825,1746978636001,-400.0,0.00012258,2]
[360754826,1746978636010,-400.0,0.00012258,2]
[360754827,1746978636020,-508.85883292,0.00012258,2]
[360754828,1746978636029,-400.0,0.00012258,2]
[360754829,1746978636038,-405.52274574,0.00012258,2]
[360754830,1746978636048,-404.65727455,0.00012258,2]
[360754831,1746978636057,-400.0,0.00012258,2]
[360754832,1746978636067,-400.0,0.00012258,2]
[360754833,1746978636076,-400.0,0.00012258,2]
[360754834,1746978636085,-529.61810904,0.00012258,2]
[360754835,1746978636094,-500.0,0.00012259,2]
[360754836,1746978636103,-400.0,0.00012259,2]
[360754837,1746978636112,-395.18301329,0.00012259,2]
[360754838,1746978636121,-501.33600552,0.00012259,2]
[360754839,1746978636131,-400.0,0.00012259,2]
[360754840,1746978636140,-400.0,0.00012259,2]
[360754841,1746978636149,-400.0,0.00012259,2]
[360754842,1746978636158,-400.0,0.00012259,2]
[360754843,1746978636168,-400.0,0.00012259,2]
[360754844,1746978636183,-400.0,0.00012259,2]
[360754845,1746978636193,-400.0,0.00012259,2]
[360754846,1746978636202,-400.0,0.00012259,2]
[360754847,1746978636212,-159.64314844,0.00012259,2]
[360754848,1746978636221,-414.70580701,0.00012259,2]
[360754849,1746978636231,-400.0,0.00012259,2]
[360754850,1746978636241,-400.0,0.00012259,2]
[360754851,1746978636250,-516.77491294,0.00012259,2]
[360754852,1746978636260,-400.0,0.00012259,2]
[360754853,1746978636270,-400.0,0.00012259,2]
[360754854,1746978636280,-400.0,0.00012259,2]
[360754855,1746978636291,-408.04723905,0.00012259,2]
[360754856,1746978636301,-245.93050061,0.00012259,2]
[360754857,1746978636310,-500.0,0.00012259,2]
[360754858,1746978636319,-68.19599035,0.00012259,2]
[360754863,1746978638480,-331.80400965,0.00012259,2]
[360754864,1746978638490,-400.0,0.00012259,2]
[360754865,1746978638499,-467.42,0.00012259,2]
[360754866,1746978638509,-400.0,0.00012259,2]
[360754867,1746978638518,-400.0,0.00012259,2]
[360754868,1746978638527,-400.0,0.00012259,2]
[360754869,1746978638536,-400.0,0.00012259,2]
[360754870,1746978638546,-400.0,0.00012259,2]
[360754871,1746978638555,-400.0,0.00012259,2]
[360754872,1746978638564,-1216.23,0.00012259,2]
[360754873,1746978638573,-400.0,0.00012259,2]
[360754874,1746978638583,-400.0,0.00012259,2]
[360754875,1746978638592,-400.0,0.00012259,2]
[360754876,1746978638602,-400.0,0.00012259,2]
[360754877,1746978638611,-402.3913258,0.00012259,2]
[360754879,1746978638621,-400.0,0.00012259,2]
[360754880,1746978638630,-400.0,0.00012259,2]
[360754882,1746978638643,-424.41809084,0.00012259,2]
[360754884,1746978638652,-400.0,0.00012259,2]
[360754886,1746978638662,-403.09887857,0.00012259,2]
[360754888,1746978638671,-400.0,0.00012259,2]
[360754890,1746978638681,-400.62620393,0.00012259,2]
[360754892,1746978638691,-400.0,0.00012259,2]
[360754894,1746978638700,-400.0,0.00012259,2]
[360754896,1746978638710,-400.0,0.00012259,2]
[360754898,1746978638719,-400.0,0.00012259,2]
[360754900,1746978638729,-400.0,0.00012259,2]
[360754902,1746978638738,-411.09685289,0.00012259,2]
[360754904,1746978638747,-410.44604431,0.00012259,2]
[360754906,1746978638756,-400.0,0.00012259,2]
[360754908,1746978638765,-400.0,0.00012259,2]
[360754910,1746978638775,-400.0,0.00012259,2]
[360754912,1746978638784,-400.0,0.00012259,2]
[360754914,1746978638794,-400.0,0.00012259,2]
[360754916,1746978638804,-400.0,0.00012259,2]
[360754917,1746978638814,-408.94929942,0.00012259,2]
[360754918,1746978638824,-400.0,0.00012259,2]
[360754919,1746978638833,-400.0,0.00012259,2]
[360754920,1746978638842,-400.0,0.00012259,2]
[360754921,1746978638852,-400.0,0.00012259,2]
[360754922,1746978638861,-510.25983312,0.00012259,2]
[360754923,1746978638871,-400.0,0.00012259,2]
[360754924,1746978638880,-400.0,0.00012259,2]
[360754925,1746978638890,-400.0,0.00012259,2]
[360754926,1746978638900,-400.0,0.00012259,2]
[360754927,1746978638910,-402.41529427,0.00012259,2]
[360754928,1746978638919,-401.53046715,0.00012259,2]
[360754929,1746978638930,-5837.09,0.00012259,2]
[360754930,1746978638940,-505.74987728,0.00012259,2]
[360754931,1746978638949,-405.00473249,0.00012259,2]
[360754932,1746978638959,-400.0,0.00012259,2]
[360754933,1746978638968,-401.43780266,0.00012259,2]
[360754934,1746978638978,-400.0,0.00012259,2]
[360754935,1746978638998,-400.0,0.00012259,2]
[360754936,1746978639016,-504.3907384,0.00012259,2]
[360754937,1746978639026,-401.23000207,0.00012259,2]
[360754938,1746978639035,-400.0,0.00012259,2]
[360754939,1746978639044,-400.0,0.00012259,2]
[360754940,1746978639054,-400.0,0.00012259,2]
[360754941,1746978639063,-400.0,0.00012259,2]
[360754942,1746978639072,-527.83460121,0.00012259,2]
[360754943,1746978639082,-400.0,0.00012259,2]
[360754944,1746978639091,-400.0,0.00012259,2]
[360754945,1746978639100,-400.0,0.00012259,2]
[360754946,1746978639110,-400.0,0.00012259,2]
[360754947,1746978639119,-400.0,0.00012259,2]
[360754948,1746978639128,-400.0,0.00012259,2]
[360754949,1746978639137,-400.0,0.00012259,2]
[360754950,1746978639147,-400.0,0.00012259,2]
[360754951,1746978639156,-400.0,0.00012259,2]
[360754952,1746978639166,-400.0,0.00012259,2]
[360754953,1746978639176,-400.0,0.00012259,2]
[360754954,1746978639185,-400.0,0.00012259,2]
[360754955,1746978639195,-403.55438738,0.00012259,2]
[360754956,1746978639206,-400.0,0.00012259,2]
[360754957,1746978639216,-400.0,0.00012259,2]
[360754958,1746978639225,-400.0,0.00012259,2]
[360754959,1746978639235,-400.0,0.00012259,2]
[360754960,1746978639244,-400.95569925,0.00012259,2]
[360754961,1746978639254,-500.0,0.00012261,2]
[360754962,1746978639264,-500.0,0.00012261,2]
[360754963,1746978639274,-500.0,0.00012261,2]
[360754964,1746978639283,-500.0,0.00012261,2]
[360754965,1746978639296,-500.0,0.00012261,2]
[360754966,1746978639305,-500.0,0.00012261,2]
[360754967,1746978639315,-500.0,0.00012261,2]
[360754968,1746978639477,-500.0,0.00012261,2]
[360754969,1746978639489,-531.82908056,0.00012261,2]